[Event "Titled Tuesday Blitz April 26 Early 2022"]
[White "Chigaev, Maksim"]
[Black "Seemann, Jakub"]
[WhiteFideId "4108116"]
[BlackFideId "21874697"]
[WhiteElo "2478"]
[BlackElo "2003"]
[Result "1-0"]
[Round "10"]
[TimeControl "180+1"]
[Date "2022.04.26"]
[WhiteClock "0:00:06"]
[BlackClock "0:00:01"]

1. d4 {[%clk 0:03:00]}  d5 {[%clk 0:02:58]} 2. c4 {[%clk 0:03:00]}  c6 {[%clk 0:02:59]} 3. Nf3 {[%clk 0:03:00]}  Nf6 {[%clk 0:02:59]} 4. Qc2 {[%clk 0:02:59]}  e6 {[%clk 0:02:59]} 5. Bf4 {[%clk 0:02:56]}  Nbd7 {[%clk 0:02:57]} 6. e3 {[%clk 0:02:56]}  Be7 {[%clk 0:02:57]} 7. Nbd2 {[%clk 0:02:51]}  O-O {[%clk 0:02:57]} 8. Bd3 {[%clk 0:02:49]}  h6 {[%clk 0:02:40]} 9. h3 {[%clk 0:02:47]}  b6 {[%clk 0:02:40]} 10. O-O {[%clk 0:02:46]}  Bb7 {[%clk 0:02:40]} 11. Rad1 {[%clk 0:02:42]}  c5 {[%clk 0:02:40]} 12. b3 {[%clk 0:02:38]}  Rc8 {[%clk 0:02:39]} 13. Rfe1 {[%clk 0:02:34]}  dxc4 {[%clk 0:02:37]} 14. bxc4 {[%clk 0:02:33]}  cxd4 {[%clk 0:02:37]} 15. exd4 {[%clk 0:02:33]}  Nd5 {[%clk 0:02:20]} 16. Bg3 {[%clk 0:02:19]}  Nb4 {[%clk 0:02:20]} 17. Bh7+ {[%clk 0:02:09]}  Kh8 {[%clk 0:02:20]} 18. Qb1 {[%clk 0:02:09]}  Nxa2 {[%clk 0:01:53]} 19. Qxa2 {[%clk 0:01:00]}  Kxh7 {[%clk 0:01:50]} 20. Qxa7 {[%clk 0:00:56]}  Bc6 {[%clk 0:01:29]} 21. Qa2 {[%clk 0:00:39]}  Ra8 {[%clk 0:01:29]} 22. Qb1+ {[%clk 0:00:34]}  Kg8 {[%clk 0:01:27]} 23. d5 {[%clk 0:00:35]}  exd5 {[%clk 0:01:24]} 24. Nd4 {[%clk 0:00:35]}  Bb7 {[%clk 0:01:19]} 25. Nf5 {[%clk 0:00:31]}  Bc5 {[%clk 0:01:09]} 26. cxd5 {[%clk 0:00:31]}  Qf6 {[%clk 0:01:00]} 27. Nc4 {[%clk 0:00:18]}  Rfd8 {[%clk 0:00:24]} 28. Ncd6 {[%clk 0:00:16]}  Ba6 {[%clk 0:00:23]} 29. Bh4 {[%clk 0:00:16]}  g5 {[%clk 0:00:22]} 30. Bg3 {[%clk 0:00:16]}  Nf8 {[%clk 0:00:21]} 31. Ne7+ {[%clk 0:00:16]}  Kg7 {[%clk 0:00:16]} 32. Be5 {[%clk 0:00:16]}  Rxd6 {[%clk 0:00:12]} 33. Bxf6+ {[%clk 0:00:14]}  Rxf6 {[%clk 0:00:13]} 34. Nf5+ {[%clk 0:00:14]}  Kh8 {[%clk 0:00:09]} 35. d6 {[%clk 0:00:12]}  Bc8 {[%clk 0:00:09]} 36. Qb2 {[%clk 0:00:11]}  Nd7 {[%clk 0:00:03]} 37. Re7 {[%clk 0:00:11]}  Kh7 {[%clk 0:00:04]} 38. Rd5 {[%clk 0:00:09]}  Kg6 {[%clk 0:00:04]} 39. g4 {[%clk 0:00:10]}  Ra4 {[%clk 0:00:02]} 40. Qb1 {[%clk 0:00:06]}  Rf4 {[%clk 0:00:03]} 41. Ng3+ {[%clk 0:00:05]}  Kg7 {[%clk 0:00:03]} 42. Nh5+ {[%clk 0:00:05]}  Kf8 {[%clk 0:00:03]} 43. Nxf4 {[%clk 0:00:05]}  Rxf4 {[%clk 0:00:03]} 44. Rxc5 {[%clk 0:00:05]}  bxc5 {[%clk 0:00:02]} 45. Qh7 {[%clk 0:00:06]}  Nf6 {[%clk 0:00:01]} 46. Qxh6+ {[%clk 0:00:06]}  Kg8 {[%clk 0:00:01]} 47. Qxg5+ {[%clk 0:00:06]} 1-0


[Site "https://www.chess.com"]

[Event "Titled Tuesday Blitz April 26 Early 2022"]
[White "Chuemsakul, Sarocha"]
[Black "Martin Carmona, Gaston Manuel"]
[WhiteFideId "6203710"]
[BlackFideId "22284567"]
[WhiteElo "1703"]
[BlackElo "2146"]
[Result "0-1"]
[Round "10"]
[TimeControl "180+1"]
[Date "2022.04.26"]
[WhiteClock "0:00:06"]
[BlackClock "0:01:24"]

1. d4 {[%clk 0:01:25]}  Nf6 {[%clk 0:02:54]} 2. c4 {[%clk 0:01:26]}  g6 {[%clk 0:02:55]} 3. Nc3 {[%clk 0:01:26]}  Bg7 {[%clk 0:02:56]} 4. e4 {[%clk 0:01:26]}  d6 {[%clk 0:02:57]} 5. Nf3 {[%clk 0:01:27]}  O-O {[%clk 0:02:57]} 6. Be2 {[%clk 0:01:27]}  e5 {[%clk 0:02:57]} 7. O-O {[%clk 0:01:27]}  exd4 {[%clk 0:02:56]} 8. Nxd4 {[%clk 0:01:28]}  Re8 {[%clk 0:02:57]} 9. f3 {[%clk 0:01:29]}  c6 {[%clk 0:02:58]} 10. Nb3 {[%clk 0:01:28]}  Qb6+ {[%clk 0:02:54]} 11. Kh1 {[%clk 0:01:27]}  a5 {[%clk 0:02:43]} 12. c5 {[%clk 0:01:24]}  dxc5 {[%clk 0:02:41]} 13. Na4 {[%clk 0:01:25]}  Qc7 {[%clk 0:02:38]} 14. Naxc5 {[%clk 0:01:15]}  b6 {[%clk 0:02:37]} 15. Nd3 {[%clk 0:01:11]}  Ba6 {[%clk 0:02:28]} 16. Bf4 {[%clk 0:01:10]}  Qc8 {[%clk 0:02:26]} 17. Rc1 {[%clk 0:01:07]}  Nbd7 {[%clk 0:02:19]} 18. Qc2 {[%clk 0:01:04]}  c5 {[%clk 0:02:13]} 19. Nd2 {[%clk 0:00:51]}  Nd5 {[%clk 0:02:11]} 20. exd5 {[%clk 0:00:37]}  Rxe2 {[%clk 0:02:12]} 21. Rfe1 {[%clk 0:00:36]}  Qe8 {[%clk 0:02:06]} 22. Bg3 {[%clk 0:00:20]}  Bh6 {[%clk 0:01:46]} 23. Rcd1 {[%clk 0:00:13]}  Qe3 {[%clk 0:01:32]} 24. Rxe2 {[%clk 0:00:08]}  Qxe2 {[%clk 0:01:33]} 25. Nf2 {[%clk 0:00:07]}  Re8 {[%clk 0:01:29]} 26. Qc3 {[%clk 0:00:07]}  Bxd2 {[%clk 0:01:24]} 27. Qxd2 {[%clk 0:00:06]}  Qxd2 {[%clk 0:01:24]} 28. Rxd2 {[%clk 0:00:06]}  Re1# {[%clk 0:01:24]} 0-1


[Site "https://www.chess.com"]

[Event "Titled Tuesday Blitz April 26 Early 2022"]
[White "Clawitter, Craig"]
[Black "D`Arruda, Ricardo D."]
[WhiteFideId "2023105"]
[BlackFideId "100692"]
[WhiteElo "2252"]
[BlackElo "2373"]
[Result "1/2-1/2"]
[Round "10"]
[TimeControl "180+1"]
[Date "2022.04.26"]
[WhiteClock "0:00:07"]
[BlackClock "0:01:55"]

1. e4 {[%clk 0:02:02]}  c5 {[%clk 0:02:58]} 2. Nf3 {[%clk 0:02:01]}  Nc6 {[%clk 0:02:58]} 3. d4 {[%clk 0:02:01]}  cxd4 {[%clk 0:02:59]} 4. Nxd4 {[%clk 0:02:01]}  e5 {[%clk 0:02:59]} 5. Nb5 {[%clk 0:02:00]}  a6 {[%clk 0:03:00]} 6. Nd6+ {[%clk 0:02:00]}  Bxd6 {[%clk 0:03:00]} 7. Qxd6 {[%clk 0:02:01]}  Qe7 {[%clk 0:03:01]} 8. Qd1 {[%clk 0:02:01]}  Nf6 {[%clk 0:03:01]} 9. Nc3 {[%clk 0:02:01]}  d6 {[%clk 0:03:01]} 10. Bg5 {[%clk 0:02:00]}  Be6 {[%clk 0:03:01]} 11. Nd5 {[%clk 0:01:40]}  Bxd5 {[%clk 0:03:01]} 12. exd5 {[%clk 0:01:41]}  Nb8 {[%clk 0:03:01]} 13. Bd3 {[%clk 0:01:26]}  Nbd7 {[%clk 0:02:59]} 14. O-O {[%clk 0:01:26]}  h6 {[%clk 0:02:59]} 15. Be3 {[%clk 0:01:15]}  Nxd5 {[%clk 0:02:56]} 16. Be4 {[%clk 0:01:13]}  Nxe3 {[%clk 0:02:54]} 17. fxe3 {[%clk 0:01:14]}  Nf6 {[%clk 0:02:52]} 18. Bd5 {[%clk 0:01:11]}  O-O {[%clk 0:02:50]} 19. e4 {[%clk 0:01:09]}  Rac8 {[%clk 0:02:48]} 20. c4 {[%clk 0:01:08]}  Nxd5 {[%clk 0:02:46]} 21. cxd5 {[%clk 0:01:08]}  Rc4 {[%clk 0:02:44]} 22. Qd3 {[%clk 0:01:03]}  Rfc8 {[%clk 0:02:43]} 23. Rf2 {[%clk 0:01:02]}  Qh4 {[%clk 0:02:41]} 24. Raf1 {[%clk 0:00:59]}  f6 {[%clk 0:02:38]} 25. Qb3 {[%clk 0:00:48]}  b5 {[%clk 0:02:35]} 26. Qa3 {[%clk 0:00:48]}  Qxe4 {[%clk 0:02:09]} 27. Qxd6 {[%clk 0:00:45]}  a5 {[%clk 0:02:05]} 28. Rxf6 {[%clk 0:00:28]}  gxf6 {[%clk 0:02:01]} 29. Qe6+ {[%clk 0:00:28]}  Kh7 {[%clk 0:01:55]} 30. Qe7+ {[%clk 0:00:20]}  Kh8 {[%clk 0:01:54]} 31. Qxf6+ {[%clk 0:00:19]}  Kh7 {[%clk 0:01:54]} 32. Qf7+ {[%clk 0:00:06]}  Kh8 {[%clk 0:01:54]} 33. Qf6+ {[%clk 0:00:06]}  Kh7 {[%clk 0:01:55]} 34. Qf7+ {[%clk 0:00:07]}  Kh8 {[%clk 0:01:55]} 35. Qf6+ {[%clk 0:00:07]} 1/2-1/2


[Site "https://www.chess.com"]

[Event "Titled Tuesday Blitz April 26 Early 2022"]
[White "Csonka, Balazs"]
[Black "Jumabayev, Rinat"]
[WhiteFideId "742910"]
[BlackFideId "13702661"]
[WhiteElo "2404"]
[BlackElo "2561"]
[Result "1/2-1/2"]
[Round "10"]
[TimeControl "180+1"]
[Date "2022.04.26"]
[WhiteClock "0:00:03"]
[BlackClock "0:00:03"]

1. d4 {[%clk 0:03:00]}  Nf6 {[%clk 0:02:56]} 2. c4 {[%clk 0:03:00]}  e6 {[%clk 0:02:56]} 3. Nc3 {[%clk 0:02:58]}  Bb4 {[%clk 0:02:57]} 4. Qc2 {[%clk 0:02:58]}  O-O {[%clk 0:02:56]} 5. Nf3 {[%clk 0:02:57]}  d6 {[%clk 0:02:55]} 6. Bd2 {[%clk 0:02:55]}  c5 {[%clk 0:02:52]} 7. dxc5 {[%clk 0:02:45]}  dxc5 {[%clk 0:02:50]} 8. e3 {[%clk 0:02:43]}  Nc6 {[%clk 0:02:49]} 9. Be2 {[%clk 0:02:43]}  Qe7 {[%clk 0:02:48]} 10. O-O {[%clk 0:02:39]}  Rd8 {[%clk 0:02:48]} 11. a3 {[%clk 0:02:36]}  Ba5 {[%clk 0:02:47]} 12. Rfd1 {[%clk 0:02:36]}  h6 {[%clk 0:02:46]} 13. Ne4 {[%clk 0:02:24]}  Nxe4 {[%clk 0:02:35]} 14. Qxe4 {[%clk 0:02:25]}  Bxd2 {[%clk 0:02:33]} 15. Rxd2 {[%clk 0:02:26]}  Rxd2 {[%clk 0:02:33]} 16. Nxd2 {[%clk 0:02:27]}  Bd7 {[%clk 0:02:26]} 17. Rd1 {[%clk 0:02:26]}  Rd8 {[%clk 0:02:22]} 18. Nb1 {[%clk 0:02:12]}  Be8 {[%clk 0:02:17]} 19. Rxd8 {[%clk 0:02:08]}  Qxd8 {[%clk 0:02:18]} 20. Qd3 {[%clk 0:02:00]}  Qxd3 {[%clk 0:01:38]} 21. Bxd3 {[%clk 0:02:01]}  Ne5 {[%clk 0:01:36]} 22. Be2 {[%clk 0:02:01]}  g5 {[%clk 0:01:36]} 23. f4 {[%clk 0:01:51]}  gxf4 {[%clk 0:01:35]} 24. exf4 {[%clk 0:01:50]}  Nc6 {[%clk 0:01:35]} 25. Bf3 {[%clk 0:01:43]}  b6 {[%clk 0:01:35]} 26. Bxc6 {[%clk 0:01:41]}  Bxc6 {[%clk 0:01:36]} 27. Nd2 {[%clk 0:01:34]}  Kg7 {[%clk 0:01:36]} 28. Kf2 {[%clk 0:01:34]}  Kg6 {[%clk 0:01:35]} 29. g3 {[%clk 0:01:30]}  Kf5 {[%clk 0:01:35]} 30. h3 {[%clk 0:01:08]}  h5 {[%clk 0:01:35]} 31. Nf3 {[%clk 0:01:00]}  Ba4 {[%clk 0:00:25]} 32. Ke3 {[%clk 0:00:54]}  Bb3 {[%clk 0:00:22]} 33. Ne5 {[%clk 0:00:52]}  Kf6 {[%clk 0:00:17]} 34. g4 {[%clk 0:00:31]}  Kg7 {[%clk 0:00:12]} 35. Kd3 {[%clk 0:00:20]}  Ba4 {[%clk 0:00:09]} 36. b4 {[%clk 0:00:13]}  f6 {[%clk 0:00:08]} 37. Nf3 {[%clk 0:00:13]}  Bc6 {[%clk 0:00:08]} 38. Ke3 {[%clk 0:00:13]}  cxb4 {[%clk 0:00:06]} 39. axb4 {[%clk 0:00:13]}  a5 {[%clk 0:00:06]} 40. Nd4 {[%clk 0:00:12]}  Bd7 {[%clk 0:00:06]} 41. c5 {[%clk 0:00:11]}  bxc5 {[%clk 0:00:06]} 42. bxc5 {[%clk 0:00:11]}  a4 {[%clk 0:00:06]} 43. c6 {[%clk 0:00:11]}  Bc8 {[%clk 0:00:07]} 44. Nb5 {[%clk 0:00:12]}  e5 {[%clk 0:00:02]} 45. fxe5 {[%clk 0:00:11]}  fxe5 {[%clk 0:00:03]} 46. Ke4 {[%clk 0:00:10]}  Kf6 {[%clk 0:00:02]} 47. gxh5 {[%clk 0:00:09]}  Bxh3 {[%clk 0:00:03]} 48. c7 {[%clk 0:00:06]}  Bd7 {[%clk 0:00:03]} 49. Nd6 {[%clk 0:00:03]}  a3 {[%clk 0:00:03]} 50. h6 {[%clk 0:00:03]}  a2 {[%clk 0:00:03]} 51. h7 {[%clk 0:00:03]}  Kg7 {[%clk 0:00:03]} 52. Nf7 {[%clk 0:00:02]}  Kxh7 {[%clk 0:00:03]} 53. Nxe5 {[%clk 0:00:02]}  Kg7 {[%clk 0:00:03]} 54. Nxd7 {[%clk 0:00:01]}  a1=Q {[%clk 0:00:03]} 55. c8=Q {[%clk 0:00:02]}  Qe1+ {[%clk 0:00:03]} 56. Kd5 {[%clk 0:00:02]}  Qd2+ {[%clk 0:00:03]} 57. Kc6 {[%clk 0:00:03]}  Qc3+ {[%clk 0:00:04]} 58. Kb7 {[%clk 0:00:03]}  Qf3+ {[%clk 0:00:03]} 59. Qc6 {[%clk 0:00:03]}  Qxc6+ {[%clk 0:00:03]} 60. Kxc6 {[%clk 0:00:03]} 1/2-1/2


[Site "https://www.chess.com"]

[Event "Titled Tuesday Blitz April 26 Early 2022"]
[White "Darini, Pouria"]
[Black "Swiercz, Dariusz"]
[WhiteFideId "12502200"]
[BlackFideId "1126881"]
[WhiteElo "2489"]
[BlackElo "2627"]
[Result "1-0"]
[Round "10"]
[TimeControl "180+1"]
[Date "2022.04.26"]
[WhiteClock "0:00:17"]
[BlackClock "0:00:03"]

1. Nf3 {[%clk 0:03:00]}  d5 {[%clk 0:03:00]} 2. e3 {[%clk 0:03:01]}  Nf6 {[%clk 0:03:00]} 3. b3 {[%clk 0:03:01]}  Bg4 {[%clk 0:02:59]} 4. h3 {[%clk 0:03:01]}  Bh5 {[%clk 0:02:58]} 5. g4 {[%clk 0:03:01]}  Bg6 {[%clk 0:02:58]} 6. Ne5 {[%clk 0:02:57]}  e6 {[%clk 0:02:54]} 7. Bb2 {[%clk 0:02:54]}  Nbd7 {[%clk 0:02:51]} 8. Nxg6 {[%clk 0:02:52]}  hxg6 {[%clk 0:02:52]} 9. Bg2 {[%clk 0:02:50]}  Bd6 {[%clk 0:02:50]} 10. d3 {[%clk 0:02:47]}  Qe7 {[%clk 0:02:51]} 11. Qe2 {[%clk 0:02:47]}  c6 {[%clk 0:02:47]} 12. a3 {[%clk 0:02:42]}  Be5 {[%clk 0:02:28]} 13. d4 {[%clk 0:02:38]}  Bd6 {[%clk 0:02:28]} 14. c4 {[%clk 0:02:35]}  g5 {[%clk 0:02:09]} 15. Nc3 {[%clk 0:02:33]}  Nf8 {[%clk 0:02:00]} 16. h4 {[%clk 0:02:06]}  gxh4 {[%clk 0:01:31]} 17. g5 {[%clk 0:02:03]}  N6d7 {[%clk 0:01:31]} 18. f4 {[%clk 0:02:03]}  f6 {[%clk 0:01:26]} 19. gxf6 {[%clk 0:01:50]}  Nxf6 {[%clk 0:01:17]} 20. c5 {[%clk 0:01:25]}  Bc7 {[%clk 0:01:17]} 21. O-O-O {[%clk 0:01:25]}  Qf7 {[%clk 0:01:13]} 22. Bh3 {[%clk 0:01:24]}  Ng6 {[%clk 0:01:04]} 23. Rhg1 {[%clk 0:01:09]}  Ne7 {[%clk 0:01:03]} 24. Qd3 {[%clk 0:01:06]}  g6 {[%clk 0:00:58]} 25. Kb1 {[%clk 0:01:00]}  Nf5 {[%clk 0:00:53]} 26. e4 {[%clk 0:01:01]}  dxe4 {[%clk 0:00:49]} 27. Nxe4 {[%clk 0:01:02]}  Nxe4 {[%clk 0:00:47]} 28. Qxe4 {[%clk 0:01:02]}  O-O-O {[%clk 0:00:48]} 29. b4 {[%clk 0:00:52]}  Rhe8 {[%clk 0:00:38]} 30. Rg4 {[%clk 0:00:52]}  Rd5 {[%clk 0:00:35]} 31. Rdg1 {[%clk 0:00:50]}  Rg8 {[%clk 0:00:27]} 32. Bf1 {[%clk 0:00:49]}  Bd8 {[%clk 0:00:17]} 33. Bc4 {[%clk 0:00:46]}  Bf6 {[%clk 0:00:16]} 34. Re1 {[%clk 0:00:43]}  Kd7 {[%clk 0:00:14]} 35. b5 {[%clk 0:00:42]}  h3 {[%clk 0:00:13]} 36. Rh1 {[%clk 0:00:36]}  Rh8 {[%clk 0:00:13]} 37. a4 {[%clk 0:00:34]}  h2 {[%clk 0:00:12]} 38. Rg2 {[%clk 0:00:33]}  Rh3 {[%clk 0:00:09]} 39. Rhxh2 {[%clk 0:00:30]}  Rxh2 {[%clk 0:00:09]} 40. Rxh2 {[%clk 0:00:31]}  Ne7 {[%clk 0:00:04]} 41. Re2 {[%clk 0:00:27]}  Qg8 {[%clk 0:00:04]} 42. a5 {[%clk 0:00:26]}  a6 {[%clk 0:00:04]} 43. bxa6 {[%clk 0:00:24]}  bxa6 {[%clk 0:00:05]} 44. Bxa6 {[%clk 0:00:22]}  Qb8 {[%clk 0:00:04]} 45. Bc4 {[%clk 0:00:21]}  Rxd4 {[%clk 0:00:02]} 46. Qxe6+ {[%clk 0:00:21]}  Kd8 {[%clk 0:00:02]} 47. Qxf6 {[%clk 0:00:19]}  Rxc4 {[%clk 0:00:01]} 48. Qxe7+ {[%clk 0:00:19]}  Kc8 {[%clk 0:00:02]} 49. Qe8+ {[%clk 0:00:17]}  Kb7 {[%clk 0:00:03]} 50. Re7+ {[%clk 0:00:18]}  Ka6 {[%clk 0:00:03]} 51. Qxb8 {[%clk 0:00:17]} 1-0


[Site "https://www.chess.com"]

[Event "Titled Tuesday Blitz April 26 Early 2022"]
[White "Drygalov, Sergey"]
[Black "Harshavardhan G B"]
[WhiteFideId "24171743"]
[BlackFideId "25059009"]
[WhiteElo "2514"]
[BlackElo "1831"]
[Result "1/2-1/2"]
[Round "10"]
[TimeControl "180+1"]
[Date "2022.04.26"]
[WhiteClock "0:00:07"]
[BlackClock "0:00:03"]

1. d4 {[%clk 0:02:59]}  Nf6 {[%clk 0:02:59]} 2. c4 {[%clk 0:02:59]}  e6 {[%clk 0:02:57]} 3. Nf3 {[%clk 0:02:59]}  c5 {[%clk 0:02:56]} 4. d5 {[%clk 0:02:59]}  exd5 {[%clk 0:02:56]} 5. cxd5 {[%clk 0:02:59]}  d6 {[%clk 0:02:56]} 6. Nc3 {[%clk 0:02:59]}  g6 {[%clk 0:02:56]} 7. e4 {[%clk 0:02:58]}  Bg4 {[%clk 0:02:55]} 8. Qb3 {[%clk 0:02:54]}  Bxf3 {[%clk 0:02:52]} 9. Qxb7 {[%clk 0:02:51]}  Nbd7 {[%clk 0:02:52]} 10. gxf3 {[%clk 0:02:51]}  Bg7 {[%clk 0:02:52]} 11. Qa6 {[%clk 0:02:44]}  O-O {[%clk 0:02:32]} 12. Be2 {[%clk 0:02:37]}  Nh5 {[%clk 0:02:23]} 13. f4 {[%clk 0:02:33]}  Qh4 {[%clk 0:02:22]} 14. Qxd6 {[%clk 0:02:32]}  Ndf6 {[%clk 0:02:18]} 15. e5 {[%clk 0:02:14]}  Ng4 {[%clk 0:02:14]} 16. Qxc5 {[%clk 0:02:13]}  Rfc8 {[%clk 0:02:04]} 17. Qd4 {[%clk 0:01:56]}  Nxe5 {[%clk 0:02:02]} 18. Qe3 {[%clk 0:01:56]}  Nc4 {[%clk 0:01:59]} 19. Qf3 {[%clk 0:01:53]}  Rab8 {[%clk 0:01:55]} 20. O-O {[%clk 0:00:50]}  Nxb2 {[%clk 0:01:51]} 21. Ne4 {[%clk 0:00:46]}  Nc4 {[%clk 0:01:47]} 22. Bxc4 {[%clk 0:00:46]}  Rxc4 {[%clk 0:01:44]} 23. Be3 {[%clk 0:00:40]}  Bxa1 {[%clk 0:01:41]} 24. Rxa1 {[%clk 0:00:41]}  Qe7 {[%clk 0:01:37]} 25. Nd2 {[%clk 0:00:35]}  Rc2 {[%clk 0:01:34]} 26. Nb3 {[%clk 0:00:36]}  Nf6 {[%clk 0:01:31]} 27. Nd4 {[%clk 0:00:35]}  Rcb2 {[%clk 0:01:22]} 28. Nc6 {[%clk 0:00:34]}  Rb1+ {[%clk 0:01:22]} 29. Kg2 {[%clk 0:00:29]}  Qe4 {[%clk 0:01:22]} 30. Rxb1 {[%clk 0:00:25]}  Rxb1 {[%clk 0:01:20]} 31. Qxe4 {[%clk 0:00:26]}  Nxe4 {[%clk 0:01:20]} 32. Bxa7 {[%clk 0:00:26]}  Ra1 {[%clk 0:01:15]} 33. Kf3 {[%clk 0:00:24]}  Nd6 {[%clk 0:00:50]} 34. Bc5 {[%clk 0:00:24]}  Nb5 {[%clk 0:00:45]} 35. a4 {[%clk 0:00:18]}  Rxa4 {[%clk 0:00:44]} 36. d6 {[%clk 0:00:18]}  Nxd6 {[%clk 0:00:17]} 37. Bxd6 {[%clk 0:00:19]}  f5 {[%clk 0:00:16]} 38. Be5 {[%clk 0:00:18]}  Kf7 {[%clk 0:00:16]} 39. Nd4 {[%clk 0:00:18]}  h6 {[%clk 0:00:15]} 40. h4 {[%clk 0:00:17]}  Ra3+ {[%clk 0:00:14]} 41. Kg2 {[%clk 0:00:17]}  Rd3 {[%clk 0:00:13]} 42. Nf3 {[%clk 0:00:17]}  Ke6 {[%clk 0:00:10]} 43. Bg7 {[%clk 0:00:11]}  h5 {[%clk 0:00:09]} 44. Bd4 {[%clk 0:00:08]}  Kd5 {[%clk 0:00:08]} 45. Be3 {[%clk 0:00:09]}  Ra3 {[%clk 0:00:06]} 46. Ne5 {[%clk 0:00:09]}  Ra6 {[%clk 0:00:06]} 47. Kf3 {[%clk 0:00:10]}  Re6 {[%clk 0:00:05]} 48. Nd3 {[%clk 0:00:09]}  Kc4 {[%clk 0:00:04]} 49. Ne5+ {[%clk 0:00:09]}  Kd5 {[%clk 0:00:04]} 50. Nf7 {[%clk 0:00:09]}  Ra6 {[%clk 0:00:03]} 51. Kg3 {[%clk 0:00:09]}  Ke4 {[%clk 0:00:03]} 52. Ng5+ {[%clk 0:00:09]}  Kd5 {[%clk 0:00:03]} 53. Kf3 {[%clk 0:00:10]}  Kc4 {[%clk 0:00:03]} 54. Nf7 {[%clk 0:00:09]}  Kd5 {[%clk 0:00:03]} 55. Kg3 {[%clk 0:00:08]}  Ke4 {[%clk 0:00:03]} 56. Ne5 {[%clk 0:00:06]}  Kd5 {[%clk 0:00:03]} 57. Kf3 {[%clk 0:00:07]}  Re6 {[%clk 0:00:03]} 1/2-1/2


[Site "https://www.chess.com"]

[Event "Titled Tuesday Blitz April 26 Early 2022"]
[White "Elgersma, Onno"]
[Black "Allahverdiyeva, Ayan"]
[WhiteFideId "1053531"]
[BlackFideId "13412590"]
[WhiteElo "2304"]
[BlackElo "1910"]
[Result "1-0"]
[Round "10"]
[TimeControl "180+1"]
[Date "2022.04.26"]
[WhiteClock "0:01:43"]
[BlackClock "0:00:01"]

1. e4 {[%clk 0:03:00]}  c5 {[%clk 0:02:04]} 2. Nf3 {[%clk 0:02:49]}  d6 {[%clk 0:02:03]} 3. Bb5+ {[%clk 0:02:49]}  Bd7 {[%clk 0:02:02]} 4. a4 {[%clk 0:02:48]}  g6 {[%clk 0:02:01]} 5. O-O {[%clk 0:02:48]}  Bg7 {[%clk 0:02:01]} 6. Nc3 {[%clk 0:02:48]}  Nf6 {[%clk 0:02:01]} 7. Re1 {[%clk 0:02:48]}  O-O {[%clk 0:02:00]} 8. e5 {[%clk 0:02:49]}  dxe5 {[%clk 0:02:00]} 9. Nxe5 {[%clk 0:02:50]}  Bf5 {[%clk 0:01:54]} 10. d3 {[%clk 0:02:48]}  Nbd7 {[%clk 0:01:48]} 11. Bf4 {[%clk 0:02:43]}  Nxe5 {[%clk 0:01:33]} 12. Bxe5 {[%clk 0:02:43]}  Bg4 {[%clk 0:01:02]} 13. Qd2 {[%clk 0:02:41]}  Rc8 {[%clk 0:00:43]} 14. Qf4 {[%clk 0:02:34]}  Be6 {[%clk 0:00:43]} 15. Qf3 {[%clk 0:02:34]}  a6 {[%clk 0:00:42]} 16. Bc4 {[%clk 0:02:33]}  Bxc4 {[%clk 0:00:41]} 17. dxc4 {[%clk 0:02:34]}  Qb6 {[%clk 0:00:41]} 18. b3 {[%clk 0:02:27]}  Rfd8 {[%clk 0:00:40]} 19. Rad1 {[%clk 0:02:24]}  Qe6 {[%clk 0:00:21]} 20. Nd5 {[%clk 0:02:05]}  Nxd5 {[%clk 0:00:09]} 21. Bxg7 {[%clk 0:02:05]}  Nf4 {[%clk 0:00:08]} 22. Rxd8+ {[%clk 0:01:50]}  Rxd8 {[%clk 0:00:04]} 23. Rxe6 {[%clk 0:01:49]}  Nxe6 {[%clk 0:00:04]} 24. Bc3 {[%clk 0:01:45]}  b6 {[%clk 0:00:02]} 25. h3 {[%clk 0:01:43]}  a5 {[%clk 0:00:01]} 26. Qe3 {[%clk 0:01:43]} 1-0


[Site "https://www.chess.com"]

[Event "Titled Tuesday Blitz April 26 Early 2022"]
[White "Esipenko, Andrey"]
[Black "Dubov, Daniil"]
[WhiteFideId "24175439"]
[BlackFideId "24126055"]
[WhiteElo "2617"]
[BlackElo "2791"]
[Result "1/2-1/2"]
[Round "10"]
[TimeControl "180+1"]
[Date "2022.04.26"]
[WhiteClock "0:00:20"]
[BlackClock "0:00:17"]

1. e4 {[%clk 0:03:00]}  e5 {[%clk 0:02:58]} 2. Nf3 {[%clk 0:03:01]}  Nc6 {[%clk 0:02:58]} 3. Bb5 {[%clk 0:03:01]}  a6 {[%clk 0:02:58]} 4. Ba4 {[%clk 0:03:01]}  Nf6 {[%clk 0:02:58]} 5. d3 {[%clk 0:03:01]}  b5 {[%clk 0:02:56]} 6. Bb3 {[%clk 0:03:01]}  Bc5 {[%clk 0:02:57]} 7. c3 {[%clk 0:03:01]}  d6 {[%clk 0:02:56]} 8. Bg5 {[%clk 0:03:00]}  h6 {[%clk 0:02:55]} 9. Bh4 {[%clk 0:03:00]}  Bb6 {[%clk 0:02:52]} 10. a4 {[%clk 0:02:58]}  Rb8 {[%clk 0:02:51]} 11. axb5 {[%clk 0:02:53]}  axb5 {[%clk 0:02:52]} 12. Na3 {[%clk 0:02:53]}  O-O {[%clk 0:02:27]} 13. Nxb5 {[%clk 0:02:51]}  g5 {[%clk 0:02:13]} 14. Bg3 {[%clk 0:02:50]}  Nh5 {[%clk 0:01:42]} 15. Na3 {[%clk 0:02:41]}  Qf6 {[%clk 0:01:36]} 16. O-O {[%clk 0:02:33]}  Bg4 {[%clk 0:01:33]} 17. Bc2 {[%clk 0:02:22]}  Ne7 {[%clk 0:01:28]} 18. Nc4 {[%clk 0:02:19]}  Ng6 {[%clk 0:01:25]} 19. b4 {[%clk 0:01:34]}  Ra8 {[%clk 0:01:20]} 20. Rxa8 {[%clk 0:01:20]}  Rxa8 {[%clk 0:01:20]} 21. Ne3 {[%clk 0:00:59]}  Bxf3 {[%clk 0:01:15]} 22. Qxf3 {[%clk 0:01:00]}  Qxf3 {[%clk 0:01:15]} 23. gxf3 {[%clk 0:01:00]}  Ngf4 {[%clk 0:00:49]} 24. d4 {[%clk 0:00:32]}  exd4 {[%clk 0:00:38]} 25. cxd4 {[%clk 0:00:32]}  Ne2+ {[%clk 0:00:36]} 26. Kh1 {[%clk 0:00:32]}  Nxd4 {[%clk 0:00:37]} 27. Bd1 {[%clk 0:00:25]}  Ra1 {[%clk 0:00:32]} 28. Kg2 {[%clk 0:00:25]}  Ne6 {[%clk 0:00:26]} 29. Nd5 {[%clk 0:00:23]}  Nhf4+ {[%clk 0:00:23]} 30. Bxf4 {[%clk 0:00:20]}  Nxf4+ {[%clk 0:00:21]} 31. Nxf4 {[%clk 0:00:20]}  gxf4 {[%clk 0:00:22]} 32. Bb3 {[%clk 0:00:20]}  Rxf1 {[%clk 0:00:17]} 33. Kxf1 {[%clk 0:00:20]} 1/2-1/2


[Site "https://www.chess.com"]